Workbook

Sheet 雨水浸透桝計算式
A2: 雨水浸透桝の設計
A4: ①設計条件
A5: Ｈ： | B5: 浸透桝置換材の設計水頭 | E5: 1 | F5: ｍ
A6: Ｗ： | B6: 浸透桝置換材幅 | E6: 1 | F6: ｍ
A7: Ｋｏ： | B7: 土の飽和透水係数 | E7: =粒径による飽和透水係数の概略値!F7 -> 0.54 | F7: ｍ／ｈ
A9: ②比浸透量
A10: Ｋｆ＝ | B10: ａＨ^2 | C10: ＋ | D10: ｂＨ | E10: ＋ | F10: ｃ
A12: Ｋｆ： | B12: 比浸透量 | E12: =ROUND(E15*E13^2+E16*E13+E17,3) -> 12.337 | F12: ㎡
A13: Ｈ： | B13: 浸透桝置換材の設計水頭 | E13: 1 | F13: ｍ
A14: Ｗ： | B14: 浸透桝置換材幅 | E14: 1 | F14: ｍ
A15: ａ： | B15: 形状係数＝0.120Ｗ＋0.985 | E15: =ROUND(0.12*E14+0.985,3) -> 1.105 | F15: －
A16: ｂ： | B16: 形状係数＝7.837Ｗ＋0.82 | E16: =ROUND(7.837*E14+0.82,3) -> 8.657 | F16: －
A17: ｃ： | B17: 形状係数＝2.858Ｗ－0.283 | E17: =ROUND(2.858*E14-0.283,3) -> 2.575 | F17: －
A19: ③浸透桝の単位設計浸透量
A20: Ｑ＝ | B20: α | C20: × | D20: Ｋｏ | E20: × | F20: Ｋｆ
A22: Ｑ： | B22: 浸透桝の単位設計浸透量 | E22: =ROUND(E27*E24,3) -> 5.396
A24: Ｑｆ： | B24: 浸透桝の基準浸透量 | E24: =ROUND(E7*E12,3) -> 6.662
A25: Ｑｆ＝ | B25: Ｋｏ | C25: × | D25: Ｋｆ | K25: 32
A27: α： | B27: 各種影響係数 | E27: =ROUND(0.9*0.9*1,3) -> 0.81
A28: α＝ | B28: α1 | C28: × | D28: α2 | E28: × | F28: α3 | G28: × | H28: α4
A29: α1： | B29: 地下水位（一般的には0.9）
A30: α2： | B30: 目づまり（一般的には0.9）
A31: α3： | B31: 注入水の水温（一般的には1.0、補正無し）
A33: ④対策雨水量の算定
A34: Ｑ1＝ | B34: Ｃ | C34: × | D34: Ｉ | E34: × | F34: Ａ
A36: Ｑ1： | B36: 対策雨水量 | E36: =ROUND(E40*E39/1000*E38,3) -> 1.554 | F36: ㎥／ｈ
A38: Ａ： | B38: 敷地・屋根面積 | E38: 55 | F38: ㎡
A39: Ｉ： | B39: 対策降雨強度 | E39: =降雨強度式一覧表!G8 -> 31.4 | F39: ㎜／ｈ
A40: Ｃ： | B40: 雨水流出係数 | E40: 0.9 | F40: －
A42: ⑤設計浸透量の算定
A43: Ｑ2＝ | B43: Ｑ | C43: × | D43: ｎ
A45: Ｑ2： | B45: 設計浸透量 | E45: =ROUND(E47*E48,3) -> 5.396 | F45: ㎥／ｈ
A47: Ｑ： | B47: 浸透桝の単位設計浸透量 | E47: =E22 -> 5.396
A48: ｎ： | B48: 浸透桝の設置基数 | E48: 1
A50: ⑥設計浸透量と対策降雨量の比較
B51: 対策降雨量（Ｑ1） | E51: 設計浸透量（Ｑ2）
B52: =E36 -> 1.554 | C52: ㎥／ｈ | D52: ＜ | E52: =E45 -> 5.396 | F52: ㎥／ｈ
A54: ⑦算定結果
B55: 設計浸透量（Ｑ2）が対策降雨量（Ｑ1）を上回っているため「ＯＫ」である。

Sheet 粒径による飽和透水係数の概略値
B2: 粒径による飽和透水係数の概略値
B3: 土質種類 | C3: 粒径（㎜） | D3: Ｋｏ（㎝／sec） | E3: Ｋｏ（ｍ／sec） | F3: Ｋｏ（ｍ／ｈ）
B4: 粘土 | C4: 0～0.01 | D4: 3×10^-6 | E4: 3×10^-8 | F4: =ROUND(3*10^-8*3600,6) -> 0.000108
B5: シルト | C5: 0.01～0.06 | D5: 4.5×10^-4 | E5: 4.5×10^-6 | F5: =ROUND(4.5*10^-6*3600,3) -> 0.016
B6: 微細砂 | C6: 0.06～0.10 | D6: 3.5×10^-3 | E6: 3.5×10^-5 | F6: =ROUND(3.5*10^-5*3600,3) -> 0.126
B7: 細砂 | C7: 0.10～0.25 | D7: 1.5×10^-2 | E7: 1.5×10^-4 | F7: =ROUND(1.5*10^-4*3600,3) -> 0.54
B8: 中砂 | C8: 0.25～0.50 | D8: 8.5×10^-2 | E8: 8.5×10^-4 | F8: =ROUND(8.5*10^-4*3600,3) -> 3.06
B9: 粗砂 | C9: 0.50～1.0 | D9: 3.5×10^-1 | E9: 3.5×10^-3 | F9: =ROUND(3.5*10^-3*3600,3) -> 12.6
B10: 小砂利 | C10: 1.0～5.0 | D10: 3 | E10: 3×10^-2 | F10: =ROUND(3*10^-2*3600,3) -> 108
B12: 浸透桝の比浸透量［Ｋｆ値（㎥）］算定
B13: 算定式の適用目安 | D13: 設計水頭 | E13: 約1.5ｍ
D14: 設備規模 | E14: 幅≦1ｍ

Sheet 降雨強度式一覧表
D2: 降雨強度式一覧表
B4: №1 福島
J5: 10分≦ｔ≦1440分
B6: 確率年 | C6: 強度式 | D6: 継続時間（分）
D7: 10 | E7: 20 | F7: 30 | G7: 60 | H7: 120 | I7: 180 | J7: 360 | K7: 720 | L7: 1440
B8: 3 | C8: 619/ｔ^0.689+2.917 | D8: =ROUND(619/(D7^0.689+2.917),2) -> 79.32 | E8: 57.34 | F8: 46.42 | G8: 31.4 | H8: 20.64 | I8: 15.99 | J8: 10.21 | K8: 6.45 | L8: 4.05
B9: 5 | C9: 736/ｔ^0.688+3.026 | D9: =ROUND(736/(D7^0.688+3.026),2) -> 93.15 | E9: =ROUND(736/(E7^0.688+3.026),2) -> 67.65 | F9: 54.89 | G9: 37.26 | H9: 24.56 | I9: 19.05 | J9: 12.18 | K9: 7.71 | L9: 4.84
B10: 10 | C10: 910/ｔ^0.690+3.349 | D10: =ROUND(910/(D7^0.69+3.349),2) -> 110.35 | E10: =ROUND(910/(E7^0.69+3.349),2) -> 80.89 | F10: 65.94 | G10: 45.02 | H10: 29.78 | I10: 23.13 | J10: 14.82 | K10: 9.38 | L10: 5.89
B11: 30 | C11: 1199/ｔ^0.692+3.897 | D11: =ROUND(1199/(D7^0.692+3.897),2) -> 135.98 | E11: =ROUND(1199/(E7^0.692+3.897),2) -> 101.22 | F11: 83.14 | G11: 57.37 | H11: 38.23 | I11: 29.78 | J11: 19.14 | K11: 12.14 | L11: 7.63
B12: 50 | C12: 1361/ｔ^0.695+4.250 | D12: =ROUND(1361/(D7^0.695+4.25),2) -> 147.86 | E12: =ROUND(1361/(E7^0.695+4.25),2) -> 110.91 | F12: 91.46 | G12: 63.42 | H12: 42.38 | I12: 33.05 | J12: 21.25 | K12: 13.47 | L12: 8.46
B13: 70 | C13: 1465/ｔ^0.696+4.455 | D13: =ROUND(1465/(D7^0.696+4.455),2) -> 155.5 | E13: =ROUND(1465/(E7^0.696+4.455),2) -> 117.2 | F13: 96.87 | G13: 67.4 | H13: 45.14 | I13: 35.23 | J13: 22.68 | K13: 14.38 | L13: 9.03
B14: 80 | C14: 1669/ｔ^0.717+5.322 | D14: =ROUND(1669/(D7^0.717+5.322),2) -> 158.44 | E14: =ROUND(1669/(E7^0.717+5.322),2) -> 120.17 | F14: 99.47 | G14: 69.09 | H14: 46 | I14: 35.72 | J14: 22.75 | K14: 14.24 | L14: 8.82
B15: 100 | C15: 1758/ｔ^0.719+5.505 | D15: =ROUND(1758/(D7^0.719+5.505),2) -> 163.67 | E15: =ROUND(1758/(E7^0.719+5.505),2) -> 124.47 | F15: 103.16 | G15: 71.77 | H15: 47.82 | I15: 37.14 | J15: 23.64 | K15: 14.79 | L15: 9.15

Sheet 工種別基礎流出係数の基準値
B2: 工種別基礎流出係数の基準値
B3: 工種別 | C3: 流出係数 | D3: 工種別 | E3: 流出係数
B4: 屋根 | C4: 0.85～0.95 | D4: 間地 | E4: 0.10～0.30
B5: 道路 | C5: 0.80～0.90 | D5: 芝、樹木の多い公園 | E5: 0.05～0.25
B6: その他の不透面 | C6: 0.75～0.85 | D6: こう配の緩い山地 | E6: 0.20～0.40
B7: 水面 | C7: 1 | D7: こう配の急な山地 | E7: 0.40～0.60
